bitfinex-derivatives/quotes_BTCF0:USTF0_20240923
["timestamp","ask_amount","ask_price","bid_price","bid_amount"]
[1727109411254,0.3608,63321.0,63312.0,0.09451409]
[1727109411255,0.078961,63319.0,63312.0,0.06282716]
[1727109411456,0.3608,63315.0,63311.0,0.06282716]
[1727109411638,0.07897,63312.0,63311.0,0.06282716]
[1727109411844,0.078971,63311.0,63308.0,0.07883021]
[1727109412051,0.078972,63310.0,63308.0,0.07883021]
[1727109412249,0.16,63311.0,63307.0,0.01841927]
[1727109412457,0.078977,63306.0,63305.0,0.07883021]
[1727109412649,0.078969,63313.0,63304.0,0.3608]
[1727109412650,0.16,63307.0,63304.0,0.3608]
[1727109412846,0.078977,63306.0,63305.0,0.06284689]
[1727109413546,0.078977,63306.0,63304.0,0.42364689]
[1727109413746,0.079977,63306.0,63305.0,0.06384689]
[1727109414243,0.001,63306.0,63305.0,0.06384689]
[1727109414449,0.001,63306.0,63305.0,0.001]
[1727109414661,0.16,63307.0,63305.0,0.005]
[1727109414955,0.001,63306.0,63305.0,0.005]
[1727109416047,0.079977,63306.0,63305.0,0.005]
[1727109416353,0.079977,63306.0,63305.0,0.006]
[1727109416561,0.216277,63306.0,63305.0,0.006]
[1727109418056,1.21118,63306.0,63298.0,0.06284689]
[1727109418358,0.07899,63296.0,63289.0,0.06284689]
[1727109418564,0.3608,63293.0,63292.0,0.078994]
[1727109419957,0.3608,63293.0,63286.0,0.00237013]
[1727109420264,0.3608,63293.0,63278.0,0.45631409]
[1727109420265,0.5208,63287.0,63278.0,0.001]
[1727109420564,0.5078,63287.0,63278.0,0.001]
[1727109420762,0.3608,63281.0,63278.0,0.001]
[1727109420968,0.439808,63281.0,63278.0,0.001]
[1727109421265,0.3608,63281.0,63278.0,0.001]
[1727109421449,0.16,63279.0,63278.0,0.001]
[1727109421654,0.239011,63279.0,63278.0,0.001]
[1727109421850,0.3608,63281.0,63278.0,0.001]
[1727109422250,0.3608,63281.0,63278.0,0.009]
[1727109422251,0.239011,63279.0,63278.0,0.009]
[1727109422455,0.318022,63279.0,63278.0,0.009]
[1727109422655,0.079019,63273.0,63266.0,0.439827]
[1727109422858,0.439822,63271.0,63267.0,0.079025]
[1727109423165,0.439822,63271.0,63262.0,0.079031]
[1727109423166,0.8816,63271.0,63262.0,0.079031]
[1727109423463,0.079038,63258.0,63255.0,0.00789152]
[1727109423666,0.079038,63258.0,63241.0,0.0037]
[1727109423667,0.3608,63256.0,63241.0,0.0037]
[1727109423859,0.3608,63256.0,63234.0,0.3645]
[1727109423860,0.5128,63246.0,63234.0,0.3645]
[1727109424167,0.5128,63246.0,63234.0,0.3608]
[1727109424461,0.3528,63246.0,63244.0,0.239054]
[1727109424669,0.3528,63246.0,63238.0,0.079061]
[1727109424981,0.0037,63250.0,63241.0,0.079058]
[1727109425277,0.3608,63256.0,63249.0,0.16]
[1727109425571,0.30543448,63256.0,63249.0,0.16]
[1727109425763,0.30543448,63256.0,63250.0,0.079046]
[1727109426265,0.30643448,63256.0,63250.0,0.079046]
[1727109426462,0.30643448,63256.0,63254.0,0.16]
[1727109426463,0.001,63256.0,63254.0,0.16]
[1727109426771,0.00237206,63262.0,63258.0,0.079036]
[1727109426972,0.00237206,63262.0,63259.0,0.16]
[1727109427468,0.0037,63269.0,63263.0,0.07903]
[1727109427658,0.3608,63271.0,63265.0,0.16]
[1727109427853,0.3608,63271.0,63264.0,0.079029]
[1727109428264,0.3608,63271.0,63261.0,0.5216]
[1727109428466,0.006,63262.0,63261.0,0.3608]
[1727109429159,0.006,63262.0,63261.0,0.439833]
[1727109429763,0.001,63271.0,63261.0,0.3608]
[1727109429958,0.001,63271.0,63270.0,0.439822]
[1727109429959,0.004,63271.0,63270.0,0.439822]
[1727109430477,0.0037,63281.0,63274.0,0.079017]
[1727109430666,0.3608,63282.0,63274.0,0.079017]
[1727109431358,0.3608,63282.0,63274.0,0.329017]
[1727109431560,0.00837173,63275.0,63274.0,0.329017]
[1727109432467,0.0037,63285.0,63284.0,0.079004]
[1727109432667,0.0037,63285.0,63270.0,0.3608]
[1727109432668,0.079011,63279.0,63270.0,0.3608]
[1727109432856,0.25,63285.0,63270.0,0.3608]
[1727109432857,0.25,63278.0,63270.0,0.3608]
[1727109433058,0.001,63275.0,63274.0,0.080017]
[1727109433269,0.002,63275.0,63274.0,0.085017]
[1727109433771,0.001,63275.0,63274.0,0.005]
[1727109433971,0.001,63278.0,63270.0,0.439822]
[1727109434277,0.001,63278.0,63274.0,0.001]
[1727109434572,0.251,63278.0,63274.0,0.001]
[1727109434770,0.444816,63275.0,63274.0,0.001]
[1727109434970,0.444816,63275.0,63261.0,0.06284689]
[1727109435272,0.079027,63266.0,63257.0,0.06284689]
[1727109435466,0.079027,63266.0,63258.0,0.06284689]
[1727109435670,0.3608,63269.0,63259.0,0.06284689]
[1727109435870,0.3608,63269.0,63259.0,0.14188289]
[1727109436059,0.3608,63269.0,63259.0,0.06284689]
[1727109436260,0.3608,63269.0,63264.0,0.3608]
[1727109436571,0.3608,63269.0,63268.0,0.079024]
[1727109436763,0.005,63275.0,63268.0,0.06284689]
[1727109437076,0.084012,63278.0,63271.0,0.079021]
[1727109437369,0.005,63278.0,63271.0,0.079021]
[1727109437573,0.3173,63281.0,63272.0,0.079019]
[1727109438065,0.0673,63281.0,63274.0,0.079016]
[1727109439375,0.0673,63281.0,63275.0,0.079016]
[1727109439672,0.0673,63281.0,63274.0,0.06284689]
[1727109439673,0.08138365,63279.0,63274.0,0.06284689]
[1727109439979,0.002,63278.0,63274.0,0.06284689]
[1727109440272,0.002,63278.0,63274.0,0.079017]
[1727109440475,0.00237165,63279.0,63276.0,0.06284689]
[1727109440680,0.08938265,63279.0,63276.0,0.06284689]
[1727109440971,0.079013,63277.0,63276.0,0.06284689]
[1727109441482,0.079013,63277.0,63275.0,0.001]
[1727109441667,0.079014,63276.0,63275.0,0.001]
[1727109441976,0.01037165,63279.0,63275.0,0.001]
[1727109442181,0.079012,63278.0,63277.0,0.06270915]
[1727109442364,0.00237165,63279.0,63274.0,0.07883021]
[1727109442566,0.079016,63275.0,63274.0,0.07883021]
[1727109442772,0.079017,63274.0,63273.0,0.07883021]
[1727109443079,0.079017,63274.0,63273.0,0.19113548]
[1727109443261,0.079017,63274.0,63273.0,0.07883021]
[1727109443462,0.079017,63274.0,63273.0,0.11234923]
[1727109444067,0.07902,63272.0,63270.0,0.09451409]
[1727109444375,0.3708,63274.0,63271.0,0.11237066]
[1727109444570,0.3708,63274.0,63272.0,0.20688475]
[1727109444571,0.079018,63273.0,63272.0,0.20688475]
[1727109444764,0.3708,63274.0,63272.0,0.11237066]
[1727109444965,0.451417,63274.0,63273.0,0.11237066]
[1727109445170,0.449817,63274.0,63273.0,0.11237066]
[1727109445675,0.3758,63274.0,63273.0,0.19138866]
[1727109445982,0.3778,63274.0,63273.0,0.19238866]
[1727109446168,0.3728,63274.0,63273.0,0.19238866]
[1727109446368,0.3808,63274.0,63273.0,0.19238866]
[1727109446578,0.3688,63274.0,63273.0,0.28590275]
[1727109446875,0.3688,63274.0,63273.0,0.32550165]
[1727109446876,0.018,63274.0,63273.0,0.32550165]
[1727109447377,0.008,63274.0,63273.0,0.32450165]
[1727109447571,0.34734297,63282.0,63273.0,0.24648365]
[1727109447767,0.079008,63281.0,63279.0,0.09436257]
[1727109448069,0.079008,63281.0,63280.0,0.11237066]
[1727109448371,0.158017,63281.0,63280.0,0.11237066]
[1727109448573,0.158017,63281.0,63278.0,0.09436257]
[1727109448574,0.079008,63281.0,63278.0,0.09436257]
[1727109448772,0.34364297,63282.0,63279.0,0.11142752]
[1727109448773,0.079009,63280.0,63279.0,0.11142752]
[1727109449477,1.232098,63280.0,63279.0,0.11142752]
[1727109449875,1.245098,63280.0,63279.0,0.11242752]
[1727109450195,0.652098,63280.0,63279.0,0.11342752]
[1727109450365,1.252098,63280.0,63279.0,0.11342752]
[1727109450567,0.639098,63280.0,63279.0,0.11242752]
[1727109450763,0.100009,63280.0,63279.0,0.11342752]
[1727109451783,0.100009,63280.0,63279.0,0.19143852]
[1727109451784,0.093009,63280.0,63279.0,0.19143852]
[1727109452080,0.023,63280.0,63279.0,0.19243852]
[1727109452770,0.023,63280.0,63279.0,0.28680109]
[1727109452973,0.023,63280.0,63279.0,0.32522753]
[1727109453683,0.023,63280.0,63279.0,0.68602753]
[1727109453883,0.023,63280.0,63279.0,0.76503853]
[1727109454079,0.023,63280.0,63279.0,0.83990042]
[1727109455571,0.079,63288.0,63282.0,0.079006]
[1727109455774,0.0921199,63284.0,63279.0,0.36364]
[1727109455974,0.1536,63290.0,63283.0,0.079005]
[1727109455975,0.0921199,63287.0,63283.0,0.079005]
[1727109456182,0.0921199,63287.0,63285.0,0.3608]
[1727109456369,0.0921199,63286.0,63285.0,0.3608]
[1727109456573,0.25,63289.0,63285.0,0.3608]
[1727109456771,0.03651493,63288.0,63285.0,0.3608]
[1727109457069,0.03651493,63288.0,63287.0,0.079001]
[1727109457070,0.006,63288.0,63287.0,0.079001]
[1727109457474,0.03651477,63288.0,63287.0,0.079001]
[1727109457973,0.03651477,63288.0,63282.0,0.001]
[1727109458183,0.03651477,63288.0,63279.0,0.080011]
[1727109458184,0.25,63284.0,63280.0,0.079009]
[1727109458490,0.03051707,63283.0,63280.0,0.079009]
[1727109458677,0.03051707,63282.0,63280.0,0.079009]
[1727109458871,0.03051707,63281.0,63280.0,0.079009]
[1727109459077,0.03051707,63283.0,63280.0,0.079009]
[1727109459273,0.03051707,63283.0,63271.0,0.3608]
[1727109459274,0.03051707,63283.0,63279.0,0.079011]
[1727109459584,0.10952307,63283.0,63271.0,0.3608]
[1727109459884,0.09323036,63276.0,63275.0,0.079016]
[1727109460490,0.079009,63281.0,63276.0,0.079014]
[1727109460685,0.03051846,63280.0,63276.0,0.079014]
[1727109460985,0.03051846,63279.0,63271.0,0.3608]
[1727109461187,0.11086653,63283.0,63277.0,0.079013]
[1727109461188,0.09323092,63278.0,63277.0,0.079013]
[1727109461392,0.09323663,63279.0,63277.0,0.6108]
[1727109461578,0.09323663,63279.0,63278.0,0.079012]
[1727109462387,0.10886653,63286.0,63277.0,0.3616]
[1727109462583,0.2537,63290.0,63277.0,0.3608]
[1727109462584,0.10886653,63284.0,63277.0,0.3608]
[1727109462782,0.10886653,63284.0,63280.0,0.11032086]
[1727109462989,0.10886653,63284.0,63281.0,0.24307181]
[1727109463187,0.079006,63283.0,63282.0,0.24307181]
[1727109463486,0.079006,63283.0,63282.0,0.11091022]
[1727109463677,0.10886653,63284.0,63283.0,0.079006]
[1727109463884,0.10886653,63284.0,63283.0,0.32224475]
[1727109464706,0.10886653,63284.0,63283.0,0.68304475]
[1727109465490,0.12441889,63288.0,63287.0,0.079001]
[1727109465674,0.12441889,63288.0,63287.0,0.47504367]
[1727109465877,0.12441889,63288.0,63287.0,0.43256723]
[1727109466084,0.12441889,63288.0,63287.0,0.32223975]
[1727109466677,0.12441889,63288.0,63287.0,0.079001]
[1727109466876,0.12441889,63288.0,63287.0,0.32284409]
[1727109467093,0.12441889,63288.0,63287.0,0.32384409]
[1727109467478,0.12441889,63288.0,63287.0,0.19124523]
[1727109467677,0.13541889,63288.0,63287.0,0.11324423]
[1727109467888,0.21441789,63288.0,63287.0,0.11324423]
[1727109468078,0.13541889,63288.0,63287.0,0.11324423]
[1727109468694,0.13541889,63288.0,63287.0,0.19202708]
[1727109468894,0.011,63288.0,63287.0,0.19202708]
[1727109469087,0.089999,63288.0,63287.0,0.19202708]
[1727109469393,0.089999,63288.0,63287.0,0.002]
[1727109470494,0.089999,63288.0,63287.0,0.081001]
[1727109471580,0.011,63288.0,63287.0,0.081001]
[1727109472179,0.089999,63288.0,63287.0,0.002]
[1727109472385,0.168998,63288.0,63287.0,0.002]
[1727109472879,0.168998,63288.0,63287.0,0.06503649]
[1727109474487,0.079006,63283.0,63282.0,0.07878285]
[1727109474687,0.079006,63283.0,63279.0,0.07878285]
[1727109474688,0.079009,63280.0,63279.0,0.07878285]
[1727109474891,0.079009,63280.0,63277.0,0.07878285]
[1727109474892,0.079012,63278.0,63277.0,0.07878285]
[1727109475194,0.16,63278.0,63277.0,0.19015751]
[1727109475390,0.16,63278.0,63276.0,0.07882295]
[1727109475391,0.079013,63277.0,63276.0,0.07882295]
[1727109475602,0.079013,63277.0,63274.0,0.07882295]
[1727109475603,0.079016,63275.0,63274.0,0.07882295]
[1727109475892,0.079016,63275.0,63270.0,0.07882295]
[1727109475893,0.079021,63271.0,63270.0,0.07882295]
[1727109476091,0.079022,63270.0,63269.0,0.07882295]
[1727109476296,0.316422,63270.0,63269.0,0.07882295]
[1727109476498,0.316422,63270.0,63268.0,0.07882295]
[1727109476707,0.079023,63269.0,63268.0,0.07882295]
[1727109477183,0.079024,63268.0,63267.0,0.07882295]
[1727109477387,0.079024,63268.0,63267.0,0.19042577]
[1727109477585,0.079024,63268.0,63267.0,0.07882295]
[1727109477788,0.079024,63268.0,63263.0,0.07903]
[1727109477996,0.079026,63267.0,63263.0,0.07903]
[1727109478193,0.079026,63267.0,63264.0,0.079029]
[1727109478593,0.079026,63267.0,63265.0,0.079028]
[1727109478899,0.0037,63275.0,63264.0,0.04728863]
[1727109479095,0.3608,63285.0,63269.0,0.25]
[1727109479096,0.0037,63279.0,63269.0,0.25]
[1727109479295,0.439811,63280.0,63273.0,0.079018]
[1727109479690,0.439811,63280.0,63270.0,0.0772]
[1727109479890,0.439811,63280.0,63275.0,0.079016]
[1727109480302,0.079014,63277.0,63270.0,0.156221]
[1727109480901,0.079014,63277.0,63271.0,0.07902]
[1727109481198,0.3608,63280.0,63270.0,0.0772]
[1727109481397,0.3608,63280.0,63275.0,0.002]
[1727109481900,0.3608,63280.0,63270.0,0.09798941]
[1727109482298,0.6108,63271.0,63270.0,0.005]
[1727109482708,0.439821,63271.0,63270.0,0.005]
[1727109483410,0.3608,63280.0,63270.0,0.005]
[1727109483704,0.079015,63276.0,63270.0,0.084022]
[1727109483901,0.3608,63280.0,63272.0,0.079019]
[1727109484092,0.079011,63279.0,63275.0,0.001]
[1727109484295,0.3608,63280.0,63275.0,0.001]
[1727109484497,0.079014,63276.0,63275.0,0.001]
[1727109484694,0.07902,63272.0,63265.0,0.12631663]
[1727109484894,0.61252001,63280.0,63265.0,0.04728863]
[1727109484895,0.6124,63280.0,63265.0,0.04728863]
[1727109485100,0.25,63275.0,63264.0,0.04728863]
[1727109485304,0.4396,63274.0,63263.0,0.04728863]
[1727109485501,0.4396,63274.0,63262.0,0.40808863]
[1727109485703,0.4396,63274.0,63262.0,0.3608]
[1727109485704,0.25,63264.0,63262.0,0.3608]
[1727109485899,0.079032,63262.0,63261.0,0.07882295]
[1727109486199,0.079033,63261.0,63260.0,0.07882295]
[1727109486506,0.079036,63259.0,63257.0,0.07874679]
[1727109487206,0.3608,63262.0,63256.0,0.3608]
[1727109487207,0.3608,63262.0,63258.0,0.19051223]
[1727109487395,0.079036,63259.0,63258.0,0.07874679]
[1727109487593,0.679036,63259.0,63258.0,0.04724035]
[1727109487811,1.153276,63259.0,63256.0,0.04724035]
[1727109488013,0.6108,63262.0,63256.0,0.04724035]
[1727109488014,0.3608,63261.0,63256.0,0.04724035]
[1727109488201,0.518866,63261.0,63260.0,0.003]
[1727109488702,0.439833,63261.0,63260.0,0.003]
[1727109489000,0.079038,63257.0,63256.0,0.05424035]
[1727109489206,0.079038,63257.0,63256.0,0.06824035]
[1727109489510,0.079038,63257.0,63256.0,0.021]
[1727109489724,0.079038,63257.0,63256.0,0.014]
[1727109489725,0.076038,63257.0,63256.0,0.014]
[1727109491404,0.3608,63261.0,63260.0,0.079034]
[1727109491607,0.3618,63261.0,63260.0,0.089034]
[1727109491809,0.3618,63261.0,63260.0,0.01]
[1727109492008,0.3618,63261.0,63257.0,0.0772]
[1727109492009,0.079033,63261.0,63257.0,0.0772]
[1727109492405,0.3608,63262.0,63256.0,0.021]
[1727109492406,0.079038,63257.0,63256.0,0.021]
[1727109492608,0.03949516,63257.0,63256.0,0.014]
[1727109492805,0.066041,63255.0,63250.0,0.15779379]
[1727109493006,0.066041,63255.0,63250.0,0.079047]
[1727109493203,0.066041,63255.0,63250.0,0.15779379]
[1727109493607,0.066041,63255.0,63250.0,0.079047]
[1727109493816,0.079036,63260.0,63251.0,0.439845]
[1727109494016,0.001,63261.0,63257.0,0.04715653]
[1727109494313,0.079037,63258.0,63257.0,0.04715653]
[1727109494513,0.079037,63258.0,63251.0,0.3608]
[1727109494514,0.001,63261.0,63256.0,0.007]
[1727109494707,0.080033,63261.0,63260.0,0.0471523]
[1727109495410,0.080033,63261.0,63258.0,0.0471523]
[1727109495411,0.079036,63259.0,63258.0,0.0471523]
[1727109495613,0.079036,63259.0,63257.0,0.41896627]
[1727109495804,0.330033,63261.0,63260.0,0.005]
[1727109496111,0.330033,63261.0,63260.0,0.008]
[1727109496315,0.080033,63261.0,63260.0,0.008]
[1727109496706,0.080033,63261.0,63260.0,0.05518234]
[1727109497515,0.001,63261.0,63260.0,0.084034]
[1727109497816,0.001,63261.0,63260.0,0.005]
[1727109497999,0.001,63259.0,63258.0,0.1528]
[1727109498519,0.074037,63258.0,63257.0,0.3608]
[1727109498819,0.071037,63258.0,63257.0,0.3608]
[1727109499114,0.066037,63258.0,63257.0,0.3608]
[1727109500504,0.079042,63254.0,63253.0,0.07870004]
[1727109500711,0.161,63259.0,63250.0,0.07870004]
[1727109500712,0.079046,63251.0,63250.0,0.07870004]
[1727109500906,0.079044,63252.0,63248.0,0.04723508]
[1727109501310,0.079046,63251.0,63247.0,0.04723508]
[1727109501604,0.079049,63248.0,63247.0,0.04723508]
[1727109502011,0.001,63251.0,63248.0,0.008]
[1727109502215,0.080047,63251.0,63248.0,0.13428408]
[1727109502523,0.079048,63249.0,63248.0,0.05523508]
[1727109503616,0.079048,63249.0,63248.0,0.008]
[1727109503926,0.001,63251.0,63250.0,0.079047]
[1727109504112,0.079037,63258.0,63252.0,0.079044]
[1727109504314,0.079037,63258.0,63255.0,0.04725585]
[1727109504515,0.3608,63262.0,63253.0,0.231542]
[1727109504516,0.079038,63257.0,63256.0,0.04725585]
[1727109505120,0.079038,63257.0,63256.0,0.0472729]
[1727109505424,0.079041,63255.0,63254.0,0.0472729]
[1727109506213,0.001,63258.0,63250.0,0.005]
[1727109506425,0.079041,63255.0,63254.0,0.04728048]
[1727109506624,0.079044,63253.0,63248.0,0.07870004]
[1727109506822,0.081039,63257.0,63248.0,0.23870004]
[1727109507024,0.081039,63257.0,63255.0,0.04728205]
[1727109507227,0.079039,63256.0,63250.0,0.15774704]
[1727109507529,0.079039,63256.0,63254.0,0.001]
[1727109507923,0.079039,63256.0,63255.0,0.11112825]
[1727109508127,0.079039,63256.0,63254.0,0.001]
[1727109508128,0.158082,63255.0,63254.0,0.07980347]
[1727109508421,0.079043,63253.0,63252.0,0.07880347]
[1727109508624,0.079046,63251.0,63250.0,0.08280347]
[1727109508823,0.079046,63251.0,63250.0,0.19399493]
[1727109509028,0.079046,63251.0,63250.0,0.08280347]
[1727109509328,0.158092,63251.0,63250.0,0.004]
[1727109509623,0.158092,63251.0,63250.0,0.19409432]
[1727109509829,0.158092,63251.0,63250.0,0.11126599]
[1727109510130,0.158092,63251.0,63250.0,0.19009455]
[1727109510318,0.158092,63251.0,63250.0,0.19009471]
[1727109510515,0.158092,63251.0,63250.0,0.11126599]
[1727109510717,0.158092,63251.0,63250.0,0.19509253]
[1727109511017,0.159092,63251.0,63250.0,0.11626599]
[1727109511520,0.080046,63251.0,63250.0,0.1161649]
[1727109511719,0.001,63251.0,63250.0,0.1952119]
[1727109511920,0.079034,63261.0,63250.0,1.08376834]
[1727109512242,0.079036,63260.0,63259.0,0.07884463]
[1727109512425,0.079031,63263.0,63259.0,0.27087457]
[1727109512633,0.079031,63263.0,63260.0,0.18990857]
[1727109512831,0.079031,63263.0,63261.0,0.11087457]
[1727109513026,0.079031,63263.0,63262.0,0.11087457]
[1727109513827,0.005,63263.0,63262.0,0.11087457]
[1727109514332,0.084031,63263.0,63262.0,0.11087457]
[1727109514533,0.080031,63263.0,63262.0,0.11187457]
[1727109514725,0.087031,63263.0,63262.0,0.11187457]
[1727109515622,0.087031,63263.0,63262.0,0.1118929]
[1727109516629,0.008,63263.0,63262.0,0.4726929]
[1727109517331,0.087031,63263.0,63262.0,0.4726929]
[1727109517533,0.03168025,63263.0,63262.0,0.4726929]
[1727109518531,0.03168025,63263.0,63262.0,0.5673672]
[1727109518532,0.11071125,63263.0,63262.0,0.5673672]
[1727109518730,0.11071125,63263.0,63262.0,0.1118929]
[1727109520037,0.03168025,63263.0,63262.0,0.1118929]
[1727109520239,0.03168025,63263.0,63262.0,0.11138504]
[1727109521129,0.03168025,63263.0,63262.0,0.20605934]
[1727109521334,0.03168025,63263.0,63262.0,0.11138504]
[1727109522736,0.11071125,63263.0,63262.0,0.11138504]
[1727109522935,0.11071125,63263.0,63262.0,0.19028311]
[1727109523137,0.11071125,63263.0,63262.0,0.001]
[1727109525237,0.03168025,63263.0,63262.0,0.001]
[1727109525640,0.11071125,63263.0,63262.0,0.001]
[1727109525840,0.27071125,63263.0,63262.0,0.001]
[1727109526028,0.27071125,63263.0,63262.0,0.07989807]
[1727109526223,0.27071125,63263.0,63262.0,0.001]
[1727109527639,0.11071125,63263.0,63262.0,0.001]
[1727109528840,0.03168025,63263.0,63262.0,0.001]
[1727109529648,0.11071125,63263.0,63262.0,0.001]
[1727109529938,0.03168025,63263.0,63262.0,0.001]
[1727109530341,0.03168025,63263.0,63262.0,0.07989807]
[1727109530537,0.03168025,63263.0,63262.0,0.11148149]
[1727109531036,0.03168025,63263.0,63262.0,0.001]
[1727109531945,0.39248025,63263.0,63262.0,0.001]
[1727109533241,0.3608,63270.0,63264.0,0.079029]
[1727109534033,0.079026,63267.0,63264.0,0.15792299]
[1727109534328,0.3608,63270.0,63264.0,0.07889399]
[1727109534638,0.079023,63269.0,63268.0,0.06312706]
[1727109535231,0.079024,63268.0,63267.0,0.06312706]
[1727109535930,0.079026,63267.0,63266.0,0.06312706]
[1727109536126,0.450423,63270.0,63266.0,0.06312706]
[1727109536127,0.444423,63270.0,63266.0,0.06312007]
[1727109536342,0.085023,63269.0,63268.0,0.001]
[1727109536930,0.079026,63267.0,63266.0,0.06312007]
[1727109537239,0.085026,63267.0,63266.0,0.06412007]
[1727109538031,0.04548948,63267.0,63266.0,0.11130683]
[1727109538241,0.006,63267.0,63266.0,0.20598113]
[1727109538429,0.0066,63270.0,63269.0,0.079023]
[1727109538634,0.0066,63270.0,63269.0,0.68141807]
[1727109538840,0.07902,63272.0,63269.0,0.68141807]
[1727109539040,0.07902,63272.0,63270.0,0.32061707]
[1727109539342,0.0037,63279.0,63269.0,0.3608]
[1727109539343,0.079016,63275.0,63271.0,0.40159507]
[1727109539543,0.079016,63275.0,63273.0,0.09463189]
[1727109539745,0.079016,63275.0,63274.0,0.11030683]
[1727109540435,0.158033,63275.0,63274.0,0.11030683]
[1727109540735,0.158033,63275.0,63274.0,0.18918661]
[1727109540736,0.518833,63275.0,63274.0,0.18918661]
[1727109540936,0.158034,63274.0,63273.0,0.07887978]
[1727109541130,0.158036,63273.0,63272.0,0.07887978]
[1727109541332,0.158036,63273.0,63272.0,0.18861483]
[1727109541333,0.470854,63273.0,63272.0,0.18861483]
[1727109541534,0.158044,63270.0,63269.0,0.001]
[1727109541939,0.158048,63268.0,63267.0,0.07887978]
[1727109542133,0.678848,63268.0,63267.0,0.18890944]
[1727109542435,0.757872,63268.0,63267.0,0.18890944]
[1727109542637,0.158054,63266.0,63265.0,0.07887978]
[1727109542839,0.158056,63265.0,63264.0,0.07887978]
[1727109543043,0.158058,63264.0,63263.0,0.07887978]
[1727109543346,0.158058,63264.0,63256.0,0.3608]
[1727109543347,0.158064,63262.0,63261.0,0.07887978]
[1727109543839,0.158066,63261.0,63260.0,0.07887978]
[1727109544042,0.318066,63261.0,63260.0,0.18914612]
[1727109544544,0.318066,63261.0,63260.0,0.07887978]
[1727109544942,0.079034,63260.0,63259.0,0.0631245]
[1727109546033,0.079036,63259.0,63258.0,0.0631245]
[1727109546940,0.001,63260.0,63258.0,0.0631245]
[1727109547144,0.001,63260.0,63259.0,0.154136]
[1727109547342,0.079017,63275.0,63259.0,1.11469839]
[1727109547646,0.079022,63270.0,63269.0,0.16]
[1727109548036,0.079017,63275.0,63269.0,0.16]
[1727109548241,0.079017,63275.0,63273.0,0.06310277]
[1727109548433,0.079017,63274.0,63273.0,0.06310277]
[1727109549144,0.079018,63273.0,63272.0,0.06310277]
[1727109549335,0.079018,63273.0,63271.0,0.06310277]
[1727109549737,0.079019,63272.0,63271.0,0.06310277]
[1727109550150,0.518838,63272.0,63271.0,0.06308433]
[1727109550344,0.439819,63272.0,63268.0,0.04731557]
[1727109550541,0.439819,63272.0,63267.0,0.04731557]
[1727109550542,0.079024,63268.0,63267.0,0.04731557]
[1727109550844,0.079028,63265.0,63264.0,0.06308433]
[1727109551351,0.079024,63269.0,63264.0,0.16]
[1727109551648,0.079019,63272.0,63271.0,0.001]
[1727109552151,0.079019,63272.0,63271.0,0.04831307]
[1727109552449,0.079019,63272.0,63271.0,0.04731307]
[1727109552639,0.079016,63276.0,63268.0,0.06308181]
[1727109552954,0.16237169,63277.0,63266.0,0.439826]
[1727109552955,0.079018,63273.0,63272.0,0.04731208]
[1727109553250,0.079018,63273.0,63272.0,0.18882355]
[1727109553446,0.239018,63273.0,63272.0,0.18882355]
[1727109553633,0.158038,63272.0,63271.0,0.001]
[1727109554040,0.518838,63272.0,63271.0,0.06408478]
[1727109554234,0.518838,63272.0,63271.0,0.001]
[1727109554943,0.158042,63271.0,63270.0,0.04731487]
[1727109555143,0.158042,63271.0,63268.0,0.06308478]
[1727109555144,0.079021,63271.0,63268.0,0.06308478]
[1727109555655,0.079023,63269.0,63268.0,0.06308478]
[1727109556440,0.079023,63269.0,63268.0,0.06408478]
[1727109557542,0.079023,63269.0,63268.0,0.001]
[1727109557953,0.079027,63266.0,63265.0,0.07888559]
[1727109558148,0.079027,63266.0,63265.0,0.18912963]
[1727109559040,0.079027,63266.0,63265.0,0.19012963]
[1727109559244,0.079027,63266.0,63265.0,0.19027204]
[1727109559551,0.079027,63266.0,63265.0,0.11124404]
[1727109560540,0.079027,63266.0,63265.0,0.1112009]
[1727109560753,0.079027,63266.0,63265.0,0.19009566]
[1727109561052,0.083027,63266.0,63265.0,0.19009566]
[1727109561453,0.083027,63266.0,63265.0,0.19009846]
[1727109561650,0.083027,63266.0,63265.0,0.1112009]
[1727109562246,0.162054,63266.0,63265.0,0.1112009]
[1727109563050,0.162054,63266.0,63265.0,0.19010014]
[1727109563254,0.083027,63266.0,63265.0,0.19010014]
[1727109563755,0.083027,63266.0,63265.0,0.1902289]
[1727109564139,0.004,63266.0,63265.0,0.28486079]
[1727109564339,0.3608,63271.0,63270.0,0.079022]
[1727109564646,0.3608,63271.0,63270.0,0.1892229]
[1727109565551,0.3608,63271.0,63270.0,0.2674229]
[1727109567352,0.3648,63271.0,63270.0,0.2674229]
[1727109567556,0.3648,63271.0,63270.0,0.2684229]
[1727109567755,0.443821,63271.0,63270.0,0.1112009]
[1727109567948,0.442821,63271.0,63270.0,0.1112009]
[1727109568253,0.442821,63271.0,63270.0,0.001]
[1727109569151,0.442821,63271.0,63268.0,0.12635068]
[1727109569352,0.521843,63271.0,63270.0,0.001]
[1727109569553,0.681843,63271.0,63270.0,0.001]
[1727109569948,0.07903,63264.0,63260.0,0.04732668]
[1727109570153,0.079034,63260.0,63259.0,0.04732668]
[1727109570356,0.079036,63259.0,63258.0,0.3608]
[1727109571351,0.078036,63259.0,63258.0,0.3608]
[1727109571848,0.079036,63259.0,63258.0,0.3618]
[1727109572251,0.079036,63259.0,63258.0,0.3638]
[1727109572868,0.001,63259.0,63258.0,0.3638]
[1727109573057,0.001,63259.0,63258.0,0.602837]
[1727109573256,0.001,63259.0,63258.0,0.5238]
[1727109573455,0.079036,63260.0,63258.0,0.3638]
[1727109573863,0.079036,63259.0,63258.0,0.3618]
[1727109574165,0.081036,63259.0,63258.0,0.3618]
[1727109575052,0.081036,63259.0,63258.0,0.47123337]
[1727109575258,0.079036,63259.0,63258.0,0.47123337]